[Event "97th Argentine Championship 2022"]
[Site "Barichole"]
[Date "2022.12.10"]
[Round "11.3"]
[White "Mareco, Sandro"]
[Black "Krysa, Leandro"]
[Result "1/2-1/2"]
[ECO "E04"]
[WhiteElo "2619"]
[BlackElo "2524"]
[Annotator "TA"]
[PlyCount "84"]
[EventDate "2022.12.01"]
[EventType "tourn"]
[EventCountry "ARG"]
[SourceTitle "playchess.com"]
[Source "ChessBase"]
[SourceQuality "1"]
[TimeControl "40/5400+30:1800+30"]

{[%evp 13,84,33,47,0,0,0,0,-13,39,42,43,27,35,29,43,25,52,22,31,43,35,48,53,0,0,0,0,-14,-15,-15,-15,-18,-19,-17,-17,-17,-14,-17,-17,-15,-14,-27,-15,-17,-8,-27,-26,-35,-10,-16,-15,-22,-7,-13,-11,-15,-10,-14,-22,-16,0,-21,0,-19,0,-27,0,-18,0,-3,0,-18,0]} 1. d4 {[%emt 0:00:02]} d5 {[%emt 0:00:10]} 2. c4 {[%emt 0:00:04]} e6 {[%emt 0:00:11]} 3. Nf3 {[%emt 0:00:04]} Nf6 {[%emt 0:00:20]} 4. g3 {[%emt 0:00:05]} dxc4 {[%emt 0:00:22]} 5. Bg2 {[%emt 0:00:04]} Nbd7 {[%emt 0:00:08]} 6. O-O {[%emt 0:02:24]} c6 {[%emt 0:00:28]} 7. a4 {[%emt 0:08:24]} a5 {[%emt 0:01:22]} 8. Bg5 {[%emt 0:04:23] E04: Open Catalan: 5 Nf3.} ({White should try} 8. Qc2 $1 $14) 8... h6 $11 {[%emt 0:01:55]} 9. Bxf6 {[%emt 0:00:12]} Qxf6 {[%emt 0:00:07]} 10. Nbd2 {[%emt 0:01:45]} Bb4 {[%emt 0:26:25]} (10... e5 $11) 11. Nxc4 $14 {[%emt 0:02:26]} O-O {[%emt 0:00:10] [#]} 12. e3 $146 {[%emt 0:08:43]} ({Predecessor:} 12. Qc2 Qe7 13. Rfd1 Nf6 14. Rac1 Bd7 15. Nfe5 Rfd8 16. e3 Ra6 17. Nd3 Be8 18. Nxb4 Qxb4 {½-½ (44) Barnaure,V (2480)-Posedaru,B (2327) Calimanesti Caciulata 2016}) 12... Rd8 {[%emt 0:02:55]} 13. Qc2 {[%emt 0:05:03]} Qe7 {[%emt 0:12:45]} 14. Rfd1 {[%emt 0:01:54]} Rb8 {[%emt 0:00:15]} 15. Ne1 {[%emt 0:22:50]} e5 {[%emt 0:13:26]} 16. dxe5 {[%emt 0:06:01]} Bxe1 {[%emt 0:02:49]} 17. Rxe1 {[%emt 0:00:05] Threatens to win with Red1.} Nxe5 {[%emt 0:00:56]} 18. Qe4 {[%emt 0:00:16]} ({White should play} 18. Nxa5 $14 Bg4 19. Nb3) 18... Re8 $11 {[%emt 0:02:34]} 19. Rec1 {[%emt 0:10:32]} ({Much worse is} 19. Nxa5 Qd8 20. Qb4 Nd3 $17) 19... Nxc4 {[%emt 0:05:21]} 20. Qxe7 {[%emt 0:01:52]} Rxe7 {[%emt 0:00:08]} 21. Rxc4 {[%emt 0:00:04]} Be6 {[%emt 0:06:04]} 22. Rc5 {[%emt 0:00:10]} Ra8 {[%emt 0:00:35]} 23. Rd1 {[%emt 0:00:36]} Rd7 {[%emt 0:02:35]} 24. Rxd7 {[%emt 0:00:49]} Bxd7 {[%emt 0:00:03][%mdl 4096] Endgame KRB-KRB} 25. Kf1 {[%emt 0:00:29]} Kf8 {[%emt 0:11:34]} 26. Ke1 {[%emt 0:00:16]} Ke7 {[%emt 0:00:27]} 27. Kd2 {[%emt 0:00:48]} Kd6 {[%emt 0:00:48]} 28. Rc3 {[%emt 0:00:11]} Ra6 {[%emt 0:03:02]} 29. b3 {[%emt 0:10:51]} Be6 {[%emt 0:01:32]} 30. Be4 {[%emt 0:06:09]} Rb6 {[%emt 0:00:42]} 31. Bc2 {[%emt 0:00:16]} Rb4 {[%emt 0:00:33]} 32. e4 {[%emt 0:01:04]} b5 {[%emt 0:02:19]} 33. f4 {[%emt 0:03:17]} f6 {[%emt 0:01:16]} 34. axb5 {[%emt 0:00:59]} cxb5 {[%emt 0:00:17]} 35. Rd3+ {[%emt 0:01:23]} Ke7 {[%emt 0:01:01]} 36. Rc3 {[%emt 0:00:11]} Kd6 {[%emt 0:00:25]} 37. Rd3+ {[%emt 0:00:16]} Ke7 {[%emt 0:00:50]} 38. Rc3 $1 {[%emt 0:00:05]} Kd6 {[%emt 0:01:38]} 39. Rd3+ {[%emt 0:00:47]} Ke7 {[%emt 0:00:06]} 40. Rc3 {[%emt 0:00:00] The position is equal.} Kd6 {[%emt 0:00:00]} 41. Rd3+ {[%emt 0:00:09]} Ke7 {[%emt 0:18:40]} 42. Rc3 {[%emt 0:00:18]} Kd6 {[%emt 0:01:52] Weighted Error Value: White=0.08 (flawless) /Black=0.09 (flawless)} 1/2-1/2

[Event "97th Argentine Championship 2022"]
[Site "Barichole"]
[Date "2022.12.10"]
[Round "11.4"]
[White "Flores, Diego"]
[Black "Valerga, Diego"]
[Result "1-0"]
[ECO "A14"]
[WhiteElo "2547"]
[BlackElo "2438"]
[Annotator "TA"]
[PlyCount "65"]
[EventDate "2022.12.01"]
[EventType "tourn"]
[EventCountry "ARG"]
[SourceTitle "playchess.com"]
[Source "ChessBase"]
[SourceQuality "1"]
[TimeControl "40/5400+30:1800+30"]

{[%evp 16,65,16,0,12,0,0,0,0,0,0,0,0,0,0,0,0,0,0,0,0,0,0,0,1,0,0,-6,0,0,11,7,11,6,28,45,107,112,110,108,115,113,532,528,642,585,577,557,633,620,880,869]} 1. c4 {[%emt 0:01:35]} e6 {[%emt 0:00:15]} 2. g3 {[%emt 0:03:41]} Nf6 {[%emt 0:00:14]} 3. Bg2 {[%emt 0:00:11]} d5 {[%emt 0:00:13]} 4. Nf3 {[%emt 0:00:17]} Be7 {[%emt 0:01:16]} 5. O-O {[%emt 0:00:22]} O-O {[%emt 0:00:06]} 6. b3 {[%emt 0:00:25]} b6 {[%emt 0:01:09]} 7. Bb2 {[%emt 0:00:28]} Bb7 {[%emt 0:00:07]} 8. e3 {[%emt 0:00:35][%cal Be2e3,Be3d4,Bd4d5][%mdl 32]} c5 {[%emt 0:02:29]} 9. Nc3 {[%emt 0:01:34] 9.Qe2 is the fancy move.} Qc8 {[%emt 0:01:00] A14: English Opening: 1...e6 with b3 by White.} 10. Rc1 {[%emt 0:03:51]} Rd8 {[%emt 0:01:27]} 11. d4 {[%emt 0:06:12]} dxc4 {[%emt 0:12:47] The position is equal.} 12. bxc4 {[%emt 0:00:41]} cxd4 {[%emt 0:00:42]} 13. exd4 {[%emt 0:00:46][%cal Od4d5]} Qxc4 {[%emt 0:09:23]} 14. Ne5 {[%emt 0:01:47][%csl LRb7,LRc4]} Qa6 {[%emt 1:06:22]} 15. d5 $1 {[%emt 0:00:06] [#]} Nbd7 $146 {[%emt 0:00:00]} (15... exd5 {simplifies} 16. Re1 Qa5 17. Ng4 Nc6) ({Predecessor:} 15... Nxd5 16. Nxd5 Bxd5 17. Qh5 g6 18. Qh6 Bf8 19. Qh4 Bxg2 20. Qxd8 Bxf1 21. Rc8 Nd7 22. Rxa8 Bh3 {0-1 (22) Chigaev,M (2637)-Graif,W (2305) Chess.com INT 2022}) 16. Nxf7 {[%emt 0:01:34][%mdl 64] Remove Defender, Decoy} Kxf7 {[%emt 0:00:00]} 17. dxe6+ {[%emt 0:00:05]} Kf8 {[%emt 0:00:00]} 18. exd7 {[%emt 0:00:21] Black must now prevent Bh3.} Bxg2 {[%emt 0:00:00]} 19. Kxg2 {[%emt 0:00:13]} Rxd7 {[%emt 0:00:00]} 20. Qb3 {[%emt 0:02:52]} (20. Qf3 {simplifies} Rad8 21. Ne4 Qd3 22. Qxd3 Rxd3 23. Ng5) 20... Rad8 {[%emt 0:00:00]} 21. Rce1 {[%emt 0:10:38]} Qb7+ {[%emt 0:00:00]} (21... Rd3 {is more complex.} 22. Qe6 Qb7+ 23. Ne4 Qd5) 22. Kg1 {[%emt 0:01:48]} Qf3 {[%emt 0:00:00] [#]} 23. Rxe7 $1 {[%emt 0:19:38]} Rxe7 {[%emt 0:00:00]} 24. Ba3 {[%emt 0:01:48]} Rdd7 {[%emt 0:00:00]} 25. Re1 {[%emt 0:04:36][%cal Ob3e6][%mdl 64] Pin} Ke8 {[%emt 0:00:00]} 26. Bxe7 $16 {[%emt 0:01:30] The board is on fire.} ({Reject} 26. Rxe7+ $6 Rxe7 27. Bxe7 Kxe7 $11) 26... Rxe7 {[%emt 0:00:00][%cal Re7e1]} 27. Qa4+ $40 {[%emt 0:00:31][%mdl 128] White is out for blood.} Nd7 {[%emt 0:00:00][%cal Re7e1] [#]} 28. Ne4 $1 {[%emt 0:00:33] Hoping for Qc6.} ({Don't do} 28. Rxe7+ Kxe7 29. Qd4 Nf6 $11) 28... Qd3 $2 {[%emt 0:00:00][%mdl 8192] This move loses the game for Black.} (28... Kf8 $16 29. Qxa7 Qh5) 29. Qc6 $18 {[%emt 0:09:16] Qc8+ is the strong threat. White is clearly winning.} h6 {[%emt 0:00:00]} 30. Re3 {[%emt 0:04:24]} Qd1+ {[%emt 0:00:00]} 31. Kg2 {[%emt 0:00:10] aiming for Nd6+.} Kf8 {[%emt 0:00:00]} 32. Nc3 {[%emt 0:01:57]} Qg4 {[%emt 0:01:01]} 33. Qd6 {[%emt 0:01:12] Weighted Error Value: White=0.05 (flawless) /Black=0.41} 1-0

[Event "97th Argentine Championship 2022"]
[Site "Barichole"]
[Date "2022.12.10"]
[Round "11.5"]
[White "Sorin, Ariel"]
[Black "Perez Ponsa, Federico"]
[Result "0-1"]
[ECO "E75"]
[WhiteElo "2363"]
[BlackElo "2538"]
[Annotator "TA"]
[PlyCount "78"]
[EventDate "2022.12.01"]
[EventType "tourn"]
[EventCountry "ARG"]
[SourceTitle "playchess.com"]
[Source "ChessBase"]
[SourceQuality "1"]
[TimeControl "40/5400+30:1800+30"]

{[%evp 19,78,6,9,0,2,12,0,0,10,0,0,0,0,0,0,0,0,0,12,0,14,0,0,0,0,0,47,0,0,-31,-28,-38,-51,-33,0,0,19,0,0,0,0,0,0,0,0,-217,-215,-205,-199,-579,-573,-568,-562,-552,-546,-514,-510,-3003,-2508,-5435,-859]} 1. d4 {[%emt 0:00:01]} Nf6 {[%emt 0:00:31]} 2. c4 {[%emt 0:00:07]} g6 {[%emt 0:00:05]} 3. Nc3 {[%emt 0:00:04]} Bg7 {[%emt 0:00:03]} 4. e4 {[%emt 0:00:29]} d6 {[%emt 0:00:04]} 5. Be2 {[%emt 0:00:04]} O-O {[%emt 0:00:06]} 6. Bg5 {[%emt 0:00:04]} c5 {[%emt 0:00:06]} 7. d5 {[%emt 0:01:12]} e6 {[%emt 0:00:07]} 8. Qd2 {[%emt 0:01:56]} exd5 {[%emt 0:00:27]} 9. exd5 {[%emt 0:00:05]} Qb6 {[%emt 0:00:22]} 10. Nf3 {[%emt 0:01:23]} Bf5 {[%emt 0:00:17]} 11. Nh4 {[%emt 0:02:05] E75: King's Indian: Averbakh Variation: 6...c5 7 d5 e6.} Ne4 {[%emt 0:00:22]} 12. Nxe4 {[%emt 0:00:12]} Bxe4 {[%emt 0:00:05]} 13. f3 {[%emt 0:00:53] The position is equal.} h6 $1 {[%emt 0:00:10]} (13... Qxb2 14. Rc1 $16) ({Don't do} 13... Bxb2 14. Rd1 Bxd5 15. cxd5 $16) 14. Bxh6 {[%emt 0:02:08]} Bxh6 {[%emt 0:00:06]} ({Don't play} 14... Qxb2 15. Qxb2 Bxb2 16. Bxf8 Kxf8 17. Kd2 $1 Bxa1 18. Rxa1 $16) 15. Qxh6 {[%emt 0:00:05]} Qxb2 {[%emt 0:00:09]} 16. O-O {[%emt 0:00:45]} Bc2 {[%emt 0:00:20][%cal Be4c2,Bc2a4,Ba4d7][%mdl 32] Active counter play!} 17. Rac1 {[%emt 0:06:34] And now Rf2 would win.} Re8 $1 {[%emt 0:00:36]} 18. Qd2 {[%emt 0:01:08]} Qf6 {[%emt 0:02:25]} 19. g3 {[%emt 0:04:10]} Ba4 {[%emt 0:02:08]} 20. f4 {[%emt 0:03:48]} Nd7 {[%emt 0:15:03]} 21. Nf3 {[%emt 1:13:47]} Re7 {[%emt 0:12:07]} 22. Bd3 {[%emt 0:00:00][%cal Of4f5] [#]} Nf8 $146 {[%emt 0:10:37] Against f5} (22... Rae8 $11) ({Predecessor:} 22... Rae8 23. f5 Ne5 24. Nxe5 Qxe5 25. fxg6 Qd4+ 26. Qf2 Qxf2+ 27. Rxf2 fxg6 28. Bxg6 Re1+ 29. Rxe1 Rxe1+ {1-0 (43) Erdenieva,O (2160)-Marjina,A (2025) Novokuznetsk 2016}) 23. g4 {[%emt 0:00:00]} (23. f5 $14 {feels stronger.}) 23... Rae8 $11 {[%emt 0:02:31]} 24. Rf2 {[%emt 0:00:00]} Bd7 {[%emt 0:05:28]} 25. f5 {[%emt 0:00:00]} Re3 {[%emt 0:03:37]} 26. Rcf1 {[%emt 0:00:00]} gxf5 {[%emt 0:07:46]} (26... a6 $15) 27. gxf5 {[%emt 0:00:00]} Nh7 {[%emt 0:03:05]} (27... Bxf5 $2 28. Bxf5 Qxf5 29. Rg2+ Ng6 30. Ng5 $18) 28. Kh1 {[%emt 0:00:00]} Kf8 {[%emt 0:04:44]} (28... Bxf5 $2 29. Bxf5 Qxf5 30. Rg1+ Kf8 31. Ng5 $1 {[%mdl 512]} Qxg5 32. Rxg5 Nxg5 33. Qb2 $18) 29. Ne1 {[%emt 0:00:00]} Qd4 $1 {[%emt 0:08:57] Hoping for ...Ng5.} 30. Rf4 $1 {[%emt 0:00:00]} Qe5 {[%emt 0:01:04][%cal Re3e1]} 31. Ng2 {[%emt 0:00:00]} Rh3 {[%emt 0:00:11]} 32. f6 $2 {[%emt 0:00:00] [#]} (32. Nh4 $1 $11 Ng5 33. f6) 32... Qh5 $1 $19 {[%emt 0:06:38]} ({Much less strong is} 32... Nxf6 33. Nh4 Rxh4 34. Rxh4 $18) 33. Ne1 {[%emt 0:00:00] [#]} Ng5 $1 {[%emt 0:04:53][%cal Oe8e1] Strongly threatening ...Rxe1! Really sharp!} 34. Rg1 {[%emt 0:00:00] [#]} (34. R1f2) 34... Rxe1 $1 {[%emt 0:02:26][%mdl 512] Black is clearly winning.} 35. Rxe1 {[%emt 0:00:00] Black must now prevent Bf1.} Nf3 {[%emt 0:00:10]} 36. Rxf3 {[%emt 0:00:00]} Qxf3+ {[%emt 0:00:05]} 37. Kg1 {[%emt 0:00:00][%cal Od2g5]} Qxd3 {[%emt 0:00:35]} 38. Qg2 {[%emt 0:00:00]} (38. Qxd3 $142 Rxd3 39. Re7) 38... Qd4+ {[%emt 0:00:51]} (38... Qxc4 $2 39. Qg7#) 39. Kh1 {[%emt 0:00:00]} Qxf6 {[%emt 0:00:27] Weighted Error Value: White=0.66/Black=0.03 (flawless)} 0-1

[Event "97th Argentine Championship 2022"]
[Site "Barichole"]
[Date "2022.12.10"]
[Round "11.6"]
[White "Paveto, Kevin"]
[Black "Gaitan, Juan Manuel"]
[Result "1/2-1/2"]
[ECO "C42"]
[WhiteElo "2431"]
[BlackElo "2347"]
[Annotator "TA"]
[PlyCount "62"]
[EventDate "2022.12.01"]
[EventType "tourn"]
[EventCountry "ARG"]
[SourceTitle "playchess.com"]
[Source "ChessBase"]
[SourceQuality "1"]
[TimeControl "40/5400+30:1800+30"]

{[%evp 9,62,24,35,34,37,42,40,39,51,14,35,14,20,11,5,0,0,0,0,0,1,0,0,0,7,1,8,8,8,6,6,8,9,8,8,3,7,-17,-15,-16,-11,-12,-10,-10,-10,-11,-11,-12,-14,-15,-10,-24,0,0,0]} 1. e4 {[%emt 0:00:03]} e5 {[%emt 0:10:18]} 2. Nf3 {[%emt 0:00:11]} Nf6 {[%emt 0:00:09]} 3. Nxe5 {[%emt 0:00:30]} d6 {[%emt 0:00:22]} 4. Nf3 {[%emt 0:00:06]} Nxe4 {[%emt 0:00:05]} 5. Bd3 {[%emt 0:00:08]} Nc5 {[%emt 0:00:48]} 6. Be2 {[%emt 0:00:07] C42: Petroff Defence: 3 Nxe5 and unusual White 3rd moves.} Be7 {[%emt 0:00:20]} 7. O-O {[%emt 0:00:11]} d5 {[%emt 0:00:37]} 8. d4 {[%emt 0:04:11] White is slightly better.} Ne4 {[%emt 0:01:00]} 9. Bf4 {[%emt 0:00:32]} O-O {[%emt 0:00:44]} 10. Nbd2 {[%emt 0:01:28][%cal Bb1d2,Bd2f1,Bf1e3][%mdl 32] [#]} Bd6 $146 {[%emt 0:00:28]} ({Predecessor:} 10... Nd7 11. Ne5 Nxe5 12. Bxe5 Bf5 13. f3 Nd6 14. Re1 c6 15. Nf1 Nc4 16. Bxc4 dxc4 {0-1 (58) Cohen,E (1964)-Dovbnia,N (1777) Bratislava 2019}) 11. Bxd6 {[%emt 0:01:43]} Nxd6 {[%emt 0:01:16]} 12. c3 {[%emt 1:27:20]} Bf5 {[%emt 0:09:06]} 13. Re1 {[%emt 0:00:00]} Nd7 {[%emt 0:07:49]} 14. Nf1 {[%emt 0:00:00]} Re8 {[%emt 0:03:22]} 15. Ne3 {[%emt 0:00:00]} Be4 {[%emt 0:00:13]} 16. Nd2 {[%emt 0:00:00]} c6 {[%emt 0:07:26]} (16... Qg5 {feels hotter.} 17. Nxe4 Nxe4 18. Bd3 Ndf6) 17. Nxe4 {[%emt 0:00:00]} Nxe4 {[%emt 0:00:02]} 18. Bd3 {[%emt 0:00:00]} Qg5 {[%emt 0:10:51]} 19. Qf3 {[%emt 0:00:00]} Re6 {[%emt 0:02:02]} 20. Re2 {[%emt 0:00:00]} Rae8 {[%emt 0:02:49]} 21. Rae1 {[%emt 0:00:00]} h5 {[%emt 0:03:56]} 22. Nf1 {[%emt 0:00:00][%cal Rd3e4]} Ndf6 {[%emt 0:04:30]} (22... Qg4 {simplifies} 23. Qxg4 hxg4 24. Bxe4 dxe4 25. Ne3 Nf6) 23. h3 {[%emt 0:00:00]} Qh4 {[%emt 0:02:12]} 24. Bxe4 {[%emt 0:00:00]} Nxe4 {[%emt 0:00:09]} 25. Ng3 {[%emt 0:00:00]} Ng5 {[%emt 0:07:29]} 26. Qd3 {[%emt 0:00:00]} g6 {[%emt 0:00:09]} 27. Rxe6 {[%emt 0:00:00]} Rxe6 {[%emt 0:00:08]} 28. Rxe6 {[%emt 0:00:00]} Nxe6 {[%emt 0:00:04]} 29. Ne2 {[%emt 0:00:00]} Qg5 {[%emt 0:00:56]} 30. g3 {[%emt 0:00:00]} Ng7 {[%emt 0:01:30]} 31. h4 {[%emt 0:00:00]} Qf5 {[%emt 0:00:06] Weighted Error Value: White=0.04 (flawless) /Black=0.03 (flawless)} 1/2-1/2